[Event "December 5 Early 2023"]
[Site "https://www.chess.com"]
[Date "2023.12.05"]
[Round "11"]
[White "Santos Flores, Alberto"]
[Black "Arabidze, Meri"]
[Result "0-1"]
[Board "61"]
[TimeControl "180+1"]
[WhiteFideId "3601234"]
[BlackFideId "13604040"]
[WhiteElo "2553"]
[BlackElo "2689"]
[WhiteTeam "ECU"]
[BlackTeam "GEO"]
[WhiteClock "0:00:03"]
[BlackClock "0:00:27"]

1. e4 {[%clk 0:03:00]}  c5 {[%clk 0:02:56]} 2. Nf3 {[%clk 0:03:00]}  e6 {[%clk 0:02:57]} 3. g3 {[%clk 0:03:00]}  Nf6 {[%clk 0:02:55]} 4. Qe2 {[%clk 0:02:59]}  Nc6 {[%clk 0:02:55]} 5. Bg2 {[%clk 0:02:58]}  e5 {[%clk 0:02:56]} 6. c3 {[%clk 0:02:57]}  d6 {[%clk 0:02:56]} 7. O-O {[%clk 0:02:58]}  Be7 {[%clk 0:02:57]} 8. Rd1 {[%clk 0:02:58]}  O-O {[%clk 0:02:57]} 9. Na3 {[%clk 0:02:55]}  Bg4 {[%clk 0:02:55]} 10. Nc4 {[%clk 0:02:48]}  Qd7 {[%clk 0:02:53]} 11. d3 {[%clk 0:02:44]}  Rfe8 {[%clk 0:02:50]} 12. Bg5 {[%clk 0:02:41]}  h6 {[%clk 0:02:49]} 13. Bxf6 {[%clk 0:02:41]}  Bxf6 {[%clk 0:02:50]} 14. Ne3 {[%clk 0:02:42]}  Be6 {[%clk 0:02:47]} 15. Nd5 {[%clk 0:02:31]}  Bxd5 {[%clk 0:02:47]} 16. exd5 {[%clk 0:02:32]}  Ne7 {[%clk 0:02:47]} 17. Nd2 {[%clk 0:02:30]}  g6 {[%clk 0:02:45]} 18. a3 {[%clk 0:02:27]}  Bg7 {[%clk 0:02:45]} 19. b4 {[%clk 0:02:25]}  b6 {[%clk 0:02:46]} 20. bxc5 {[%clk 0:02:24]}  bxc5 {[%clk 0:02:47]} 21. Rdb1 {[%clk 0:02:24]}  Rab8 {[%clk 0:02:44]} 22. Nc4 {[%clk 0:02:24]}  Kh7 {[%clk 0:02:43]} 23. Qc2 {[%clk 0:02:21]}  f5 {[%clk 0:02:43]} 24. Rxb8 {[%clk 0:02:19]}  Rxb8 {[%clk 0:02:44]} 25. Rb1 {[%clk 0:02:19]}  Qc7 {[%clk 0:02:43]} 26. Rxb8 {[%clk 0:02:11]}  Qxb8 {[%clk 0:02:44]} 27. Qb2 {[%clk 0:02:12]}  Qxb2 {[%clk 0:02:07]} 28. Nxb2 {[%clk 0:02:13]}  e4 {[%clk 0:02:08]} 29. dxe4 {[%clk 0:02:12]}  Bxc3 {[%clk 0:02:08]} 30. Nc4 {[%clk 0:02:11]}  fxe4 {[%clk 0:02:07]} 31. Bxe4 {[%clk 0:02:09]}  Nc8 {[%clk 0:02:04]} 32. f4 {[%clk 0:01:52]}  Kg7 {[%clk 0:02:01]} 33. Kf2 {[%clk 0:01:51]}  Kf6 {[%clk 0:01:59]} 34. Kf3 {[%clk 0:01:50]}  g5 {[%clk 0:01:58]} 35. fxg5+ {[%clk 0:01:49]}  hxg5 {[%clk 0:01:59]} 36. h4 {[%clk 0:01:46]}  gxh4 {[%clk 0:02:00]} 37. gxh4 {[%clk 0:01:47]}  Be5 {[%clk 0:01:55]} 38. Kg4 {[%clk 0:01:40]}  Nb6 {[%clk 0:01:48]} 39. Nxe5 {[%clk 0:01:22]}  dxe5 {[%clk 0:01:34]} 40. h5 {[%clk 0:01:21]}  Nc4 {[%clk 0:01:26]} 41. h6 {[%clk 0:01:11]}  Nd6 {[%clk 0:01:19]} 42. Kf3 {[%clk 0:01:04]}  c4 {[%clk 0:01:12]} 43. Ke3 {[%clk 0:01:01]}  Nf7 {[%clk 0:00:49]} 44. h7 {[%clk 0:00:54]}  Kg7 {[%clk 0:00:49]} 45. Bc2 {[%clk 0:00:49]}  Nd6 {[%clk 0:00:49]} 46. Kd2 {[%clk 0:00:48]}  e4 {[%clk 0:00:48]} 47. Ke3 {[%clk 0:00:45]}  c3 {[%clk 0:00:47]} 48. Kd4 {[%clk 0:00:44]}  Kxh7 {[%clk 0:00:45]} 49. Kc5 {[%clk 0:00:37]}  Kg7 {[%clk 0:00:45]} 50. Kxd6 {[%clk 0:00:37]}  e3 {[%clk 0:00:45]} 51. Kc7 {[%clk 0:00:15]}  e2 {[%clk 0:00:45]} 52. d6 {[%clk 0:00:16]}  e1=Q {[%clk 0:00:45]} 53. d7 {[%clk 0:00:17]}  Qg3+ {[%clk 0:00:40]} 54. Kc8 {[%clk 0:00:16]}  Qh3 {[%clk 0:00:36]} 55. Kc7 {[%clk 0:00:17]}  Qh2+ {[%clk 0:00:36]} 56. Kc8 {[%clk 0:00:17]}  Qxc2 {[%clk 0:00:34]} 57. d8=Q {[%clk 0:00:17]}  Qf5+ {[%clk 0:00:31]} 58. Kc7 {[%clk 0:00:15]}  c2 {[%clk 0:00:30]} 59. Qd4+ {[%clk 0:00:13]}  Kg6 {[%clk 0:00:30]} 60. Qc3 {[%clk 0:00:12]}  Qf7+ {[%clk 0:00:27]} 61. Kb8 {[%clk 0:00:09]}  Qf4+ {[%clk 0:00:27]} 62. Kb7 {[%clk 0:00:03]}  c1=Q {[%clk 0:00:27]} 0-1

[Event "December 5 Early 2023"]
[Site "https://www.chess.com"]
[Date "2023.12.05"]
[Round "11"]
[White "Jakubowski, Krzysztof"]
[Black "Kovalevsky, Stanislav"]
[Result "1/2-1/2"]
[Board "68"]
[TimeControl "180+1"]
[WhiteFideId "1112848"]
[BlackFideId "13508598"]
[WhiteElo "2636"]
[BlackElo "2495"]
[WhiteTeam "POL"]
[BlackTeam "FID"]
[WhiteClock "0:00:12"]
[BlackClock "0:00:06"]

1. e4 {[%clk 0:03:00]}  c6 {[%clk 0:03:00]} 2. d4 {[%clk 0:02:58]}  d5 {[%clk 0:03:01]} 3. exd5 {[%clk 0:02:58]}  cxd5 {[%clk 0:03:01]} 4. Bd3 {[%clk 0:02:58]}  Nc6 {[%clk 0:03:01]} 5. c3 {[%clk 0:02:58]}  Nf6 {[%clk 0:03:01]} 6. Bf4 {[%clk 0:02:56]}  Bg4 {[%clk 0:03:00]} 7. Qb3 {[%clk 0:02:56]}  Qd7 {[%clk 0:03:00]} 8. Nd2 {[%clk 0:02:56]}  e6 {[%clk 0:02:59]} 9. Ngf3 {[%clk 0:02:55]}  Bd6 {[%clk 0:02:58]} 10. Bxd6 {[%clk 0:02:55]}  Qxd6 {[%clk 0:02:59]} 11. O-O {[%clk 0:02:55]}  O-O {[%clk 0:02:59]} 12. Rfe1 {[%clk 0:02:54]}  Ne7 {[%clk 0:02:56]} 13. Ne5 {[%clk 0:02:50]}  Bf5 {[%clk 0:02:56]} 14. Bxf5 {[%clk 0:02:26]}  Nxf5 {[%clk 0:02:57]} 15. Re2 {[%clk 0:02:15]}  b6 {[%clk 0:02:43]} 16. Rae1 {[%clk 0:02:14]}  Rac8 {[%clk 0:02:32]} 17. Qb5 {[%clk 0:02:08]}  Rc7 {[%clk 0:02:29]} 18. a3 {[%clk 0:02:05]}  Rfc8 {[%clk 0:02:25]} 19. Qd3 {[%clk 0:02:05]}  Nh4 {[%clk 0:01:54]} 20. g3 {[%clk 0:01:47]}  Nf5 {[%clk 0:01:49]} 21. g4 {[%clk 0:01:44]}  Ne7 {[%clk 0:01:37]} 22. f4 {[%clk 0:01:44]}  h5 {[%clk 0:01:26]} 23. gxh5 {[%clk 0:01:21]}  Nxh5 {[%clk 0:01:26]} 24. Qf3 {[%clk 0:01:15]}  g6 {[%clk 0:01:18]} 25. Nxf7 {[%clk 0:01:15]}  Kxf7 {[%clk 0:01:15]} 26. Rxe6 {[%clk 0:01:15]}  Qxe6 {[%clk 0:01:16]} 27. Rxe6 {[%clk 0:01:16]}  Kxe6 {[%clk 0:01:16]} 28. Qg4+ {[%clk 0:01:16]}  Kf7 {[%clk 0:01:15]} 29. Nf3 {[%clk 0:01:15]}  Nc6 {[%clk 0:01:10]} 30. Ng5+ {[%clk 0:01:02]}  Ke8 {[%clk 0:00:56]} 31. Ne6 {[%clk 0:00:59]}  Ne7 {[%clk 0:00:49]} 32. Nxc7+ {[%clk 0:00:45]}  Rxc7 {[%clk 0:00:50]} 33. f5 {[%clk 0:00:46]}  Nf6 {[%clk 0:00:49]} 34. Qf4 {[%clk 0:00:46]}  Rc6 {[%clk 0:00:41]} 35. fxg6 {[%clk 0:00:46]}  Nxg6 {[%clk 0:00:14]} 36. Qb8+ {[%clk 0:00:45]}  Kf7 {[%clk 0:00:07]} 37. Qxa7+ {[%clk 0:00:40]}  Ne7 {[%clk 0:00:07]} 38. a4 {[%clk 0:00:29]}  Ne4 {[%clk 0:00:08]} 39. Kg2 {[%clk 0:00:26]}  Nd2 {[%clk 0:00:07]} 40. h4 {[%clk 0:00:20]}  Nc4 {[%clk 0:00:07]} 41. b4 {[%clk 0:00:18]}  Ne3+ {[%clk 0:00:07]} 42. Kf3 {[%clk 0:00:16]}  Nf5 {[%clk 0:00:07]} 43. Ke2 {[%clk 0:00:13]}  Nxh4 {[%clk 0:00:06]} 44. a5 {[%clk 0:00:13]}  bxa5 {[%clk 0:00:06]} 45. bxa5 {[%clk 0:00:14]}  Rxc3 {[%clk 0:00:05]} 46. a6 {[%clk 0:00:14]}  Nf5 {[%clk 0:00:03]} 47. Kd2 {[%clk 0:00:14]}  Ra3 {[%clk 0:00:02]} 48. Qb6 {[%clk 0:00:13]}  Nxd4 {[%clk 0:00:01]} 49. Qxd4 {[%clk 0:00:12]}  Rxa6 {[%clk 0:00:01]} 50. Qf4+ {[%clk 0:00:12]}  Rf6 {[%clk 0:00:01]} 51. Qg5 {[%clk 0:00:12]}  Ke6 {[%clk 0:00:01]} 52. Qg4+ {[%clk 0:00:12]}  Rf5 {[%clk 0:00:02]} 53. Qg7 {[%clk 0:00:12]}  Kd7 {[%clk 0:00:02]} 54. Qh7 {[%clk 0:00:11]}  Ke6 {[%clk 0:00:03]} 55. Qh3 {[%clk 0:00:11]}  Kd7 {[%clk 0:00:03]} 56. Qg4 {[%clk 0:00:11]}  Ke6 {[%clk 0:00:04]} 57. Qh3 {[%clk 0:00:11]}  Ke5 {[%clk 0:00:04]} 58. Qg3+ {[%clk 0:00:11]}  Ke6 {[%clk 0:00:05]} 59. Qg4 {[%clk 0:00:11]}  Kf6 {[%clk 0:00:05]} 60. Qh4+ {[%clk 0:00:11]}  Ke6 {[%clk 0:00:05]} 61. Qg4 {[%clk 0:00:12]}  Kd7 {[%clk 0:00:06]} 62. Qg7 {[%clk 0:00:12]}  Ke6 {[%clk 0:00:06]} 63. Qg4 {[%clk 0:00:12]} 1/2-1/2

[Event "December 5 Early 2023"]
[Site "https://www.chess.com"]
[Date "2023.12.05"]
[Round "11"]
[White "Skliarov, Viktor"]
[Black "Moksh Amit Doshi"]
[Result "1-0"]
[Board "69"]
[TimeControl "180+1"]
[WhiteFideId "14106736"]
[BlackFideId "25064967"]
[WhiteElo "2616"]
[BlackElo "2635"]
[WhiteTeam "UKR"]
[BlackTeam "IND"]
[WhiteClock "0:02:56"]
[BlackClock "0:01:34"]

1. e4 {[%clk 0:03:00]}  e5 {[%clk 0:02:56]} 2. Nc3 {[%clk 0:03:00]}  Nf6 {[%clk 0:02:56]} 3. Bc4 {[%clk 0:03:01]}  Nxe4 {[%clk 0:02:50]} 4. Qh5 {[%clk 0:03:00]}  Nd6 {[%clk 0:02:49]} 5. Bb3 {[%clk 0:03:00]}  Nc6 {[%clk 0:02:46]} 6. Nb5 {[%clk 0:03:00]}  g6 {[%clk 0:02:29]} 7. Qf3 {[%clk 0:03:00]}  f5 {[%clk 0:02:29]} 8. Qd5 {[%clk 0:03:00]}  Qf6 {[%clk 0:02:00]} 9. Nxc7+ {[%clk 0:03:00]}  Kd8 {[%clk 0:02:01]} 10. Nxa8 {[%clk 0:03:01]}  b6 {[%clk 0:02:01]} 11. h4 {[%clk 0:03:00]}  Bb7 {[%clk 0:02:01]} 12. Nxb6 {[%clk 0:03:01]}  axb6 {[%clk 0:02:01]} 13. Qd3 {[%clk 0:03:00]}  Nd4 {[%clk 0:01:59]} 14. Qh3 {[%clk 0:03:00]}  Bg7 {[%clk 0:01:42]} 15. d3 {[%clk 0:02:58]}  Re8 {[%clk 0:01:34]} 16. Bg5 {[%clk 0:02:56]} 1-0

[Event "December 5 Early 2023"]
[Site "https://www.chess.com"]
[Date "2023.12.05"]
[Round "11"]
[White "Jovic, Stanoje"]
[Black "Zivic, Dragan"]
[Result "1/2-1/2"]
[Board "71"]
[TimeControl "180+1"]
[WhiteFideId "905020"]
[BlackFideId "904740"]
[WhiteElo "2479"]
[BlackElo "2370"]
[WhiteTeam "SRB"]
[BlackTeam "SRB"]
[WhiteClock "0:00:14"]
[BlackClock "0:00:43"]

1. c4 {[%clk 0:03:00]}  e5 {[%clk 0:02:53]} 2. g3 {[%clk 0:03:00]}  Nf6 {[%clk 0:02:53]} 3. Bg2 {[%clk 0:03:00]}  d5 {[%clk 0:02:51]} 4. cxd5 {[%clk 0:03:00]}  Nxd5 {[%clk 0:02:51]} 5. Nf3 {[%clk 0:03:00]}  Nc6 {[%clk 0:02:47]} 6. O-O {[%clk 0:02:57]}  Nb6 {[%clk 0:02:44]} 7. Nc3 {[%clk 0:02:56]}  Be7 {[%clk 0:02:42]} 8. d4 {[%clk 0:02:56]}  exd4 {[%clk 0:02:39]} 9. Nb5 {[%clk 0:02:56]}  O-O {[%clk 0:02:37]} 10. Nbxd4 {[%clk 0:02:54]}  Nxd4 {[%clk 0:02:34]} 11. Nxd4 {[%clk 0:02:54]}  c6 {[%clk 0:02:32]} 12. a4 {[%clk 0:02:48]}  Bf6 {[%clk 0:02:29]} 13. e3 {[%clk 0:02:48]}  Bxd4 {[%clk 0:02:19]} 14. Qxd4 {[%clk 0:02:41]}  Qxd4 {[%clk 0:02:17]} 15. exd4 {[%clk 0:02:41]}  Nd5 {[%clk 0:02:13]} 16. a5 {[%clk 0:02:34]}  Re8 {[%clk 0:02:07]} 17. Bd2 {[%clk 0:02:27]}  Bf5 {[%clk 0:02:03]} 18. Rfe1 {[%clk 0:02:24]}  f6 {[%clk 0:02:00]} 19. h3 {[%clk 0:02:21]}  Kf7 {[%clk 0:01:54]} 20. g4 {[%clk 0:02:21]}  Bd3 {[%clk 0:01:44]} 21. f4 {[%clk 0:01:59]}  Rxe1+ {[%clk 0:01:34]} 22. Rxe1 {[%clk 0:01:58]}  Re8 {[%clk 0:01:31]} 23. Rxe8 {[%clk 0:01:56]}  Kxe8 {[%clk 0:01:32]} 24. f5 {[%clk 0:01:51]}  h5 {[%clk 0:01:29]} 25. Kf2 {[%clk 0:01:46]}  hxg4 {[%clk 0:01:25]} 26. hxg4 {[%clk 0:01:45]}  Kd7 {[%clk 0:01:25]} 27. Kg3 {[%clk 0:01:44]}  b6 {[%clk 0:01:23]} 28. b4 {[%clk 0:01:36]}  Bc4 {[%clk 0:01:21]} 29. Bf3 {[%clk 0:01:33]}  Nc7 {[%clk 0:01:17]} 30. Kh4 {[%clk 0:01:29]}  Nb5 {[%clk 0:01:14]} 31. Be3 {[%clk 0:01:24]}  Bd5 {[%clk 0:01:13]} 32. Be2 {[%clk 0:01:19]}  Nc7 {[%clk 0:01:09]} 33. g5 {[%clk 0:01:16]}  Be4 {[%clk 0:01:05]} 34. Bg4 {[%clk 0:01:01]}  Nd5 {[%clk 0:01:01]} 35. Bd2 {[%clk 0:01:01]}  Ne7 {[%clk 0:01:00]} 36. gxf6 {[%clk 0:00:48]}  gxf6 {[%clk 0:01:00]} 37. Kh5 {[%clk 0:00:42]}  Bxf5 {[%clk 0:01:00]} 38. Be2 {[%clk 0:00:36]}  Be6 {[%clk 0:00:57]} 39. Kh6 {[%clk 0:00:33]}  f5 {[%clk 0:00:56]} 40. Kg5 {[%clk 0:00:32]}  Nd5 {[%clk 0:00:51]} 41. Bh5 {[%clk 0:00:28]}  Kd6 {[%clk 0:00:51]} 42. Bg6 {[%clk 0:00:26]}  c5 {[%clk 0:00:49]} 43. dxc5+ {[%clk 0:00:24]}  bxc5 {[%clk 0:00:49]} 44. b5 {[%clk 0:00:24]}  c4 {[%clk 0:00:49]} 45. Bxf5 {[%clk 0:00:18]}  Bxf5 {[%clk 0:00:49]} 46. Kxf5 {[%clk 0:00:18]}  Kc5 {[%clk 0:00:49]} 47. b6 {[%clk 0:00:17]}  axb6 {[%clk 0:00:46]} 48. axb6 {[%clk 0:00:17]}  Nxb6 {[%clk 0:00:44]} 49. Ke4 {[%clk 0:00:15]}  c3 {[%clk 0:00:43]} 50. Bxc3 {[%clk 0:00:14]} 1/2-1/2

[Event "December 5 Early 2023"]
[Site "https://www.chess.com"]
[Date "2023.12.05"]
[Round "11"]
[White "Buksa, Nataliya"]
[Black "GMVignirVatnar"]
[Result "0-1"]
[Board "72"]
[TimeControl "180+1"]
[WhiteFideId "14123622"]
[WhiteElo "2495"]
[BlackElo "2738"]
[WhiteTeam "UKR"]
[WhiteClock "0:01:24"]
[BlackClock "0:00:54"]

1. d4 {[%clk 0:03:00]}  f5 {[%clk 0:02:56]} 2. Nc3 {[%clk 0:03:00]}  Nf6 {[%clk 0:02:56]} 3. Bg5 {[%clk 0:02:59]}  d5 {[%clk 0:02:56]} 4. Bxf6 {[%clk 0:02:59]}  exf6 {[%clk 0:02:57]} 5. e3 {[%clk 0:02:59]}  Nc6 {[%clk 0:02:53]} 6. Bd3 {[%clk 0:03:00]}  Be6 {[%clk 0:02:52]} 7. Qf3 {[%clk 0:02:59]}  Qd7 {[%clk 0:02:51]} 8. Nge2 {[%clk 0:02:59]}  O-O-O {[%clk 0:02:49]} 9. Nf4 {[%clk 0:03:00]}  Bf7 {[%clk 0:02:49]} 10. h4 {[%clk 0:02:45]}  h5 {[%clk 0:02:46]} 11. Qh3 {[%clk 0:02:41]}  g6 {[%clk 0:02:43]} 12. a3 {[%clk 0:02:40]}  Ne7 {[%clk 0:02:36]} 13. Qg3 {[%clk 0:02:33]}  Rg8 {[%clk 0:02:25]} 14. Qf3 {[%clk 0:02:32]}  Kb8 {[%clk 0:02:20]} 15. g3 {[%clk 0:02:31]}  c6 {[%clk 0:02:20]} 16. Na4 {[%clk 0:02:25]}  Nc8 {[%clk 0:02:18]} 17. b4 {[%clk 0:02:25]}  Nd6 {[%clk 0:02:17]} 18. Nc5 {[%clk 0:02:26]}  Qc8 {[%clk 0:02:15]} 19. a4 {[%clk 0:02:25]}  Ne4 {[%clk 0:02:12]} 20. Bxe4 {[%clk 0:02:19]}  fxe4 {[%clk 0:02:09]} 21. Qe2 {[%clk 0:02:19]}  b6 {[%clk 0:01:54]} 22. Nb3 {[%clk 0:02:18]}  Bxb4+ {[%clk 0:01:53]} 23. Kf1 {[%clk 0:02:16]}  Rh8 {[%clk 0:01:42]} 24. a5 {[%clk 0:02:16]}  b5 {[%clk 0:01:39]} 25. c3 {[%clk 0:02:13]}  Bd6 {[%clk 0:01:38]} 26. a6 {[%clk 0:02:11]}  g5 {[%clk 0:01:37]} 27. Ng2 {[%clk 0:02:11]}  Be6 {[%clk 0:01:30]} 28. Qb2 {[%clk 0:01:58]}  Bg4 {[%clk 0:01:26]} 29. Na5 {[%clk 0:01:54]}  Bf3 {[%clk 0:01:22]} 30. Nb7 {[%clk 0:01:53]}  Rd7 {[%clk 0:01:18]} 31. Rh2 {[%clk 0:01:41]}  Rxb7 {[%clk 0:01:11]} 32. axb7 {[%clk 0:01:40]}  Qxb7 {[%clk 0:01:12]} 33. Ne1 {[%clk 0:01:40]}  Bg4 {[%clk 0:01:10]} 34. Nc2 {[%clk 0:01:41]}  gxh4 {[%clk 0:00:59]} 35. Rxh4 {[%clk 0:01:40]}  f5 {[%clk 0:01:00]} 36. Nb4 {[%clk 0:01:38]}  Be7 {[%clk 0:01:00]} 37. Rh2 {[%clk 0:01:35]}  h4 {[%clk 0:00:59]} 38. Ra6 {[%clk 0:01:34]}  Bxb4 {[%clk 0:00:58]} 39. Qxb4 {[%clk 0:01:28]}  Qxa6 {[%clk 0:00:58]} 40. Qd6+ {[%clk 0:01:27]}  Ka8 {[%clk 0:00:57]} 41. gxh4 {[%clk 0:01:23]}  Qa1+ {[%clk 0:00:53]} 42. Kg2 {[%clk 0:01:24]}  Bf3+ {[%clk 0:00:53]} 43. Kh3 {[%clk 0:01:25]}  Qf1+ {[%clk 0:00:53]} 44. Kg3 {[%clk 0:01:25]}  Qg1+ {[%clk 0:00:54]} 45. Kf4 {[%clk 0:01:25]}  Qxh2+ {[%clk 0:00:54]} 46. Kg5 {[%clk 0:01:24]}  Qxd6 {[%clk 0:00:54]} 0-1

[Event "December 5 Early 2023"]
[Site "https://www.chess.com"]
[Date "2023.12.05"]
[Round "11"]
[White "Pakleza, Zbigniew"]
[Black "Mazurkiewicz, Michal"]
[Result "1-0"]
[Board "73"]
[TimeControl "180+1"]
[WhiteFideId "1119290"]
[BlackFideId "1124943"]
[WhiteElo "2677"]
[BlackElo "2492"]
[WhiteTeam "POL"]
[BlackTeam "POL"]
[WhiteClock "0:00:06"]
[BlackClock "0:00:06"]

1. f3 {[%clk 0:03:00]}  f6 {[%clk 0:02:55]} 2. Kf2 {[%clk 0:03:01]}  Kf7 {[%clk 0:02:55]} 3. Ke3 {[%clk 0:03:02]}  e5 {[%clk 0:02:54]} 4. c3 {[%clk 0:03:00]}  d5 {[%clk 0:02:53]} 5. d4 {[%clk 0:03:00]}  c5 {[%clk 0:02:52]} 6. Kf2 {[%clk 0:02:59]}  Nc6 {[%clk 0:02:51]} 7. e3 {[%clk 0:02:59]}  cxd4 {[%clk 0:02:40]} 8. exd4 {[%clk 0:03:00]}  exd4 {[%clk 0:02:40]} 9. cxd4 {[%clk 0:03:00]}  Qb6 {[%clk 0:02:40]} 10. Ne2 {[%clk 0:02:59]}  Nxd4 {[%clk 0:02:16]} 11. Nxd4 {[%clk 0:02:52]}  Bc5 {[%clk 0:02:15]} 12. Be3 {[%clk 0:02:44]}  Qxb2+ {[%clk 0:02:15]} 13. Qd2 {[%clk 0:02:45]}  Qxa1 {[%clk 0:02:13]} 14. Be2 {[%clk 0:02:23]}  a5 {[%clk 0:00:35]} 15. Rc1 {[%clk 0:02:01]}  Bb4 {[%clk 0:00:32]} 16. Nc3 {[%clk 0:01:35]}  Bxc3 {[%clk 0:00:32]} 17. Rxc3 {[%clk 0:01:36]}  Qb1 {[%clk 0:00:16]} 18. Nb5 {[%clk 0:01:03]}  Ne7 {[%clk 0:00:15]} 19. Rc7 {[%clk 0:00:50]}  Qb4 {[%clk 0:00:13]} 20. Qc2 {[%clk 0:00:28]}  Re8 {[%clk 0:00:12]} 21. Bc5 {[%clk 0:00:24]}  Qh4+ {[%clk 0:00:13]} 22. Kf1 {[%clk 0:00:20]}  Bf5 {[%clk 0:00:10]} 23. Qxf5 {[%clk 0:00:18]}  Qxh2 {[%clk 0:00:09]} 24. Nd6+ {[%clk 0:00:13]}  Kf8 {[%clk 0:00:09]} 25. Qe6 {[%clk 0:00:13]}  Qh1+ {[%clk 0:00:07]} 26. Kf2 {[%clk 0:00:13]}  Qh4+ {[%clk 0:00:07]} 27. Kf1 {[%clk 0:00:07]}  Qh1+ {[%clk 0:00:07]} 28. Bg1 {[%clk 0:00:07]}  Qh5 {[%clk 0:00:08]} 29. f4 {[%clk 0:00:06]}  Ng6 {[%clk 0:00:06]} 30. Qf7# {[%clk 0:00:06]} 1-0

[Event "December 5 Early 2023"]
[Site "https://www.chess.com"]
[Date "2023.12.05"]
[Round "11"]
[White "Herman, Matthew"]
[Black "Tasev, Dejan"]
[Result "1-0"]
[Board "74"]
[TimeControl "180+1"]
[WhiteFideId "2028964"]
[BlackFideId "936618"]
[WhiteElo "2494"]
[BlackElo "2649"]
[WhiteTeam "USA"]
[BlackTeam "SRB"]
[WhiteClock "0:00:07"]
[BlackClock "0:00:27"]

1. e4 {[%clk 0:03:00]}  d6 {[%clk 0:02:59]} 2. d4 {[%clk 0:03:01]}  Nf6 {[%clk 0:02:58]} 3. Nc3 {[%clk 0:03:01]}  g6 {[%clk 0:02:58]} 4. Nf3 {[%clk 0:02:59]}  Bg7 {[%clk 0:02:58]} 5. Be3 {[%clk 0:02:58]}  O-O {[%clk 0:02:58]} 6. Qd2 {[%clk 0:02:52]}  c5 {[%clk 0:02:58]} 7. dxc5 {[%clk 0:02:24]}  dxc5 {[%clk 0:02:54]} 8. Qxd8 {[%clk 0:02:00]}  Rxd8 {[%clk 0:02:52]} 9. Bxc5 {[%clk 0:02:01]}  Nc6 {[%clk 0:02:52]} 10. h3 {[%clk 0:01:38]}  b6 {[%clk 0:02:45]} 11. Ba3 {[%clk 0:01:38]}  Bb7 {[%clk 0:02:43]} 12. Bd3 {[%clk 0:01:34]}  e6 {[%clk 0:02:36]} 13. O-O-O {[%clk 0:01:24]}  Nd7 {[%clk 0:02:31]} 14. Nb5 {[%clk 0:01:04]}  Nc5 {[%clk 0:02:26]} 15. Bxc5 {[%clk 0:01:04]}  bxc5 {[%clk 0:02:25]} 16. c3 {[%clk 0:01:04]}  a6 {[%clk 0:02:16]} 17. Na3 {[%clk 0:01:00]}  Rab8 {[%clk 0:02:10]} 18. Nc4 {[%clk 0:00:56]}  Kf8 {[%clk 0:02:07]} 19. Bc2 {[%clk 0:00:49]}  Ke7 {[%clk 0:02:06]} 20. Rxd8 {[%clk 0:00:48]}  Rxd8 {[%clk 0:02:05]} 21. Rd1 {[%clk 0:00:48]}  Rxd1+ {[%clk 0:01:56]} 22. Kxd1 {[%clk 0:00:48]}  h6 {[%clk 0:01:52]} 23. h4 {[%clk 0:00:46]}  Bc8 {[%clk 0:01:31]} 24. Ne1 {[%clk 0:00:45]}  Bf8 {[%clk 0:01:15]} 25. Nd3 {[%clk 0:00:45]}  Kf6 {[%clk 0:01:12]} 26. e5+ {[%clk 0:00:29]}  Kg7 {[%clk 0:01:11]} 27. f4 {[%clk 0:00:26]}  Be7 {[%clk 0:01:08]} 28. g3 {[%clk 0:00:26]}  g5 {[%clk 0:01:08]} 29. hxg5 {[%clk 0:00:18]}  hxg5 {[%clk 0:01:08]} 30. Ba4 {[%clk 0:00:18]}  Bb7 {[%clk 0:01:03]} 31. Nd6 {[%clk 0:00:13]}  Ba8 {[%clk 0:00:52]} 32. Nxc5 {[%clk 0:00:13]}  gxf4 {[%clk 0:00:52]} 33. gxf4 {[%clk 0:00:14]}  a5 {[%clk 0:00:50]} 34. Na6 {[%clk 0:00:11]}  Bxd6 {[%clk 0:00:46]} 35. exd6 {[%clk 0:00:11]}  Nd8 {[%clk 0:00:47]} 36. Nc5 {[%clk 0:00:09]}  Bd5 {[%clk 0:00:43]} 37. b3 {[%clk 0:00:09]}  Kf6 {[%clk 0:00:43]} 38. Kd2 {[%clk 0:00:09]}  Kf5 {[%clk 0:00:43]} 39. Ke3 {[%clk 0:00:09]}  f6 {[%clk 0:00:43]} 40. Nd7 {[%clk 0:00:08]}  e5 {[%clk 0:00:41]} 41. fxe5 {[%clk 0:00:08]}  fxe5 {[%clk 0:00:40]} 42. Nb6 {[%clk 0:00:09]}  Ke6 {[%clk 0:00:38]} 43. Nxd5 {[%clk 0:00:09]}  Kxd5 {[%clk 0:00:37]} 44. d7 {[%clk 0:00:09]}  Kd6 {[%clk 0:00:36]} 45. a3 {[%clk 0:00:08]}  Kd5 {[%clk 0:00:36]} 46. b4 {[%clk 0:00:08]}  axb4 {[%clk 0:00:36]} 47. cxb4 {[%clk 0:00:09]}  Kc4 {[%clk 0:00:27]} 48. Ke4 {[%clk 0:00:07]} 1-0

[Event "December 5 Early 2023"]
[Site "https://www.chess.com"]
[Date "2023.12.05"]
[Round "11"]
[White "Gubajdullin, Alexei"]
[Black "Iljin, Timofey"]
[Result "1-0"]
[Board "77"]
[TimeControl "180+1"]
[WhiteFideId "4141202"]
[BlackFideId "14110180"]
[WhiteElo "2615"]
[BlackElo "2479"]
[WhiteTeam "RUS"]
[BlackTeam "UKR"]
[WhiteClock "0:00:18"]
[BlackClock "0:00:07"]

1. d4 {[%clk 0:03:00]}  f5 {[%clk 0:02:59]} 2. Nf3 {[%clk 0:02:58]}  Nf6 {[%clk 0:03:00]} 3. Nc3 {[%clk 0:02:55]}  g6 {[%clk 0:03:00]} 4. Bg5 {[%clk 0:02:55]}  Bg7 {[%clk 0:03:00]} 5. Bxf6 {[%clk 0:02:55]}  Bxf6 {[%clk 0:03:01]} 6. e4 {[%clk 0:02:56]}  d6 {[%clk 0:02:59]} 7. h4 {[%clk 0:02:55]}  h6 {[%clk 0:02:58]} 8. h5 {[%clk 0:02:56]}  g5 {[%clk 0:02:58]} 9. exf5 {[%clk 0:02:56]}  Bxf5 {[%clk 0:02:59]} 10. Bd3 {[%clk 0:02:56]}  Qd7 {[%clk 0:03:00]} 11. Nd5 {[%clk 0:02:56]}  O-O {[%clk 0:02:41]} 12. O-O {[%clk 0:02:29]}  Na6 {[%clk 0:02:25]} 13. Qe2 {[%clk 0:02:21]}  Rae8 {[%clk 0:02:01]} 14. Ne3 {[%clk 0:02:10]}  Bxd3 {[%clk 0:01:52]} 15. Qxd3 {[%clk 0:02:09]}  e6 {[%clk 0:01:44]} 16. Ng4 {[%clk 0:02:06]}  Bg7 {[%clk 0:01:31]} 17. Qg6 {[%clk 0:01:52]}  Kh8 {[%clk 0:01:31]} 18. c3 {[%clk 0:01:31]}  e5 {[%clk 0:01:24]} 19. Nxg5 {[%clk 0:01:03]}  Qf5 {[%clk 0:00:31]} 20. Nf3 {[%clk 0:00:41]}  Re6 {[%clk 0:00:20]} 21. Qxf5 {[%clk 0:00:40]}  Rxf5 {[%clk 0:00:21]} 22. dxe5 {[%clk 0:00:40]}  dxe5 {[%clk 0:00:20]} 23. Rad1 {[%clk 0:00:38]}  Rxh5 {[%clk 0:00:17]} 24. Rd8+ {[%clk 0:00:37]}  Kh7 {[%clk 0:00:16]} 25. Nd2 {[%clk 0:00:37]}  Rg5 {[%clk 0:00:12]} 26. f3 {[%clk 0:00:34]}  e4 {[%clk 0:00:09]} 27. Re1 {[%clk 0:00:34]}  Nc5 {[%clk 0:00:07]} 28. Ne3 {[%clk 0:00:20]}  Nd3 {[%clk 0:00:06]} 29. Re2 {[%clk 0:00:20]}  exf3 {[%clk 0:00:06]} 30. Nxf3 {[%clk 0:00:20]}  Nf4 {[%clk 0:00:02]} 31. Nxg5+ {[%clk 0:00:19]}  hxg5 {[%clk 0:00:03]} 32. Re1 {[%clk 0:00:20]}  Bf6 {[%clk 0:00:03]} 33. Rd7+ {[%clk 0:00:19]}  Kg6 {[%clk 0:00:03]} 34. g3 {[%clk 0:00:18]}  Nd3 {[%clk 0:00:01]} 35. Rxd3 {[%clk 0:00:17]}  Be7 {[%clk 0:00:01]} 36. Kg2 {[%clk 0:00:17]}  Bc5 {[%clk 0:00:02]} 37. Nc2 {[%clk 0:00:17]}  Ra6 {[%clk 0:00:02]} 38. a3 {[%clk 0:00:17]}  Rb6 {[%clk 0:00:02]} 39. b4 {[%clk 0:00:17]}  Bd6 {[%clk 0:00:03]} 40. c4 {[%clk 0:00:17]}  g4 {[%clk 0:00:04]} 41. c5 {[%clk 0:00:17]}  Ra6 {[%clk 0:00:05]} 42. cxd6 {[%clk 0:00:17]}  cxd6 {[%clk 0:00:06]} 43. Red1 {[%clk 0:00:18]}  Kf5 {[%clk 0:00:07]} 44. Rd5+ {[%clk 0:00:18]}  Ke4 {[%clk 0:00:07]} 45. R1d4# {[%clk 0:00:18]} 1-0